[Event "3rd FIDE WCCC Blitz U10 2019"]
[Site "Minsk"]
[Date "2019.08.18"]
[Round "9.3"]
[White "Zverev, Lev"]
[Black "Vetokhin, Savva"]
[Result "0-1"]
[ECO "B62"]
[WhiteElo "1881"]
[BlackElo "2016"]
[Annotator "NA"]
[PlyCount "124"]
[EventDate "2019.08.18"]
[EventType "swiss"]
[EventCountry "BLR"]
[SourceTitle "playchess.com"]
[Source "ChessBase"]
[SourceQuality "1"]
[TimeControl "300+2"]

1. e4 {[%emt 0:00:00]} c5 {[%emt 0:00:00]} 2. Nf3 Nc6 3. d4 {[%emt 0:00:05]} cxd4 {[%emt 0:00:01]} 4. Nxd4 {[%emt 0:00:01]} Nf6 {[%emt 0:00:01]} 5. Nc3 {[%emt 0:00:01]} d6 {[%emt 0:00:00]} 6. Bg5 {[%emt 0:00:03]} e6 {[%emt 0:00:01]} 7. f4 {[%emt 0:00:01]} a6 {[%emt 0:00:04]} 8. Nxc6 {[%emt 0:00:05]} bxc6 {[%emt 0:00:03]} 9. Qd2 {[%emt 0:00:10]} Be7 {[%emt 0:00:04]} 10. Bd3 {[%emt 0:00:06]} Qb6 {[%emt 0:00:05]} 11. O-O-O {[%emt 0:00:14]} Rb8 {[%emt 0:00:02]} 12. Na4 {[%emt 0:00:04]} Qb4 {[%emt 0:00:08]} 13. Qxb4 {[%emt 0:00:02]} Rxb4 {[%emt 0:00:01]} 14. Nc3 {[%emt 0:00:01]} h6 {[%emt 0:00:13]} 15. Bh4 {[%emt 0:00:15]} d5 {[%emt 0:00:06]} 16. exd5 {[%emt 0:00:07]} cxd5 {[%emt 0:00:07]} 17. f5 {[%emt 0:00:12]} Rxh4 {[%emt 0:00:02]} 18. fxe6 {[%emt 0:00:05]} Bxe6 {[%emt 0:00:04]} 19. Rhe1 {[%emt 0:00:02]} Rb4 {[%emt 0:00:06]} 20. Bxa6 {[%emt 0:00:02]} O-O {[%emt 0:00:05]} 21. Bd3 {[%emt 0:00:03]} Rfb8 {[%emt 0:00:06]} 22. b3 {[%emt 0:00:02]} Rc8 {[%emt 0:00:01]} 23. Kb2 {[%emt 0:00:02]} d4 {[%emt 0:00:11]} 24. Ne2 {[%emt 0:00:10]} Nd5 {[%emt 0:00:16]} 25. a3 {[%emt 0:00:08]} Rbb8 {[%emt 0:00:02]} 26. Ka2 {[%emt 0:00:07]} Ra8 {[%emt 0:00:03]} 27. a4 {[%emt 0:00:02]} Nb4+ {[%emt 0:00:02]} 28. Kb2 {[%emt 0:00:02]} Bf6 {[%emt 0:00:08]} 29. Kb1 {[%emt 0:00:02]} Rc7 {[%emt 0:00:02]} 30. Be4 {[%emt 0:00:07]} Rac8 {[%emt 0:00:10]} 31. Nxd4 {[%emt 0:00:03]} Bxd4 {[%emt 0:00:02]} 32. Rxd4 {[%emt 0:00:02]} Nxc2 {[%emt 0:00:02]} 33. Bxc2 {[%emt 0:00:05]} Rxc2 {[%emt 0:00:00]} 34. Rd8+ {[%emt 0:00:06]} Rxd8 {[%emt 0:00:06]} 35. Kxc2 {[%emt 0:00:02]} Kf8 {[%emt 0:00:04]} 36. Re2 {[%emt 0:00:05]} Ke7 {[%emt 0:00:04]} 37. b4 {[%emt 0:00:03]} Kd6 {[%emt 0:00:03]} 38. Kc3 {[%emt 0:00:08]} Rc8+ {[%emt 0:00:02]} 39. Kb2 {[%emt 0:00:05]} Rc4 {[%emt 0:00:01]} 40. Ka3 {[%emt 0:00:05]} Rc3+ {[%emt 0:00:00]} 41. Kb2 {[%emt 0:00:01]} Rb3+ {[%emt 0:00:01]} 42. Kc2 {[%emt 0:00:01]} Rxb4 {[%emt 0:00:00]} 43. Kc3 {[%emt 0:00:02]} Rxa4 {[%emt 0:00:01]} 44. Rd2+ {[%emt 0:00:05]} Ke7 {[%emt 0:00:02]} 45. Kd3 {[%emt 0:00:03]} Ra2 {[%emt 0:00:01]} 46. Rd1 {[%emt 0:00:02]} Rxg2 {[%emt 0:00:01]} 47. h4 {[%emt 0:00:03]} Rg3+ {[%emt 0:00:02]} 48. Kd4 {[%emt 0:00:04]} Rg4+ {[%emt 0:00:01]} 49. Kc5 {[%emt 0:00:01]} Rxh4 {[%emt 0:00:02]} 50. Kc6 {[%emt 0:00:02]} Rc4+ {[%emt 0:00:01]} 51. Kb6 {[%emt 0:00:01]} h5 {[%emt 0:00:02]} 52. Rh1 {[%emt 0:00:01]} h4 {[%emt 0:00:01]} 53. Kb5 {[%emt 0:00:01]} g5 {[%emt 0:00:01]} 54. Re1 {[%emt 0:00:03]} g4 {[%emt 0:00:03]} 55. Rh1 {[%emt 0:00:02]} g3 {[%emt 0:00:01]} 56. Kb6 {[%emt 0:00:01]} g2 {[%emt 0:00:02]} 57. Rg1 {[%emt 0:00:03]} h3 {[%emt 0:00:00]} 58. Kb5 {[%emt 0:00:07]} h2 {[%emt 0:00:02]} 59. Rxg2 {[%emt 0:00:02]} h1=Q {[%emt 0:00:01]} 60. Kb6 {[%emt 0:00:16]} Qxg2 {[%emt 0:00:04]} 61. Ka5 {[%emt 0:00:02]} Qb2 {[%emt 0:00:09]} 62. Ka6 {[%emt 0:00:04]} Ra4# {[%emt 0:00:01]} 0-1

[Event "3rd FIDE WCCC Blitz U10 2019"]
[Site "Minsk"]
[Date "2019.08.18"]
[Round "9.4"]
[White "Zimin, Artur"]
[Black "Gusev, Kirill"]
[Result "1-0"]
[ECO "C11"]
[WhiteElo "1672"]
[BlackElo "2066"]
[Annotator "NA"]
[PlyCount "121"]
[EventDate "2019.08.18"]
[EventType "swiss"]
[EventCountry "BLR"]
[SourceTitle "playchess.com"]
[Source "ChessBase"]
[SourceQuality "1"]
[TimeControl "300+2"]

1. d4 {[%emt 0:00:00]} d5 {[%emt 0:00:00]} 2. Nc3 {[%emt 0:00:00]} Nf6 {[%emt 0:00:02]} 3. Bg5 {[%emt 0:00:00]} e6 {[%emt 0:00:01]} 4. e4 {[%emt 0:00:01]} dxe4 {[%emt 0:00:02]} 5. Nxe4 {[%emt 0:00:00]} Be7 {[%emt 0:00:01]} 6. Bxf6 {[%emt 0:00:01]} Bxf6 {[%emt 0:00:02]} 7. Nf3 {[%emt 0:00:02]} Nc6 {[%emt 0:00:02]} 8. c3 {[%emt 0:00:01]} b6 {[%emt 0:00:03]} 9. Bd3 {[%emt 0:00:01]} Bb7 {[%emt 0:00:01]} 10. Qc2 {[%emt 0:00:01]} h6 {[%emt 0:00:06]} 11. O-O-O {[%emt 0:00:05]} a5 {[%emt 0:00:05]} 12. h4 {[%emt 0:00:28]} a4 {[%emt 0:00:05]} 13. g4 {[%emt 0:00:07]} a3 {[%emt 0:00:02]} 14. b3 {[%emt 0:00:02]} Ne7 {[%emt 0:00:29]} 15. g5 {[%emt 0:00:06]} Nd5 {[%emt 0:01:00]} 16. gxf6 {[%emt 0:00:08]} gxf6 {[%emt 0:00:01]} 17. Rhg1 {[%emt 0:00:18]} f5 {[%emt 0:00:01]} 18. Ned2 {[%emt 0:00:02]} Qf6 {[%emt 0:00:07]} 19. Ne5 {[%emt 0:00:08]} O-O-O {[%emt 0:00:18]} 20. Ndf3 {[%emt 0:00:33]} Kb8 {[%emt 0:00:15]} 21. Qd2 {[%emt 0:00:21]} Ne7 {[%emt 0:00:17]} 22. Be2 {[%emt 0:00:17]} Nc8 {[%emt 0:00:14]} 23. Qf4 {[%emt 0:00:57]} Nd6 {[%emt 0:00:16]} 24. Bd3 {[%emt 0:00:05]} Nc8 {[%emt 0:00:18]} 25. Bb5 {[%emt 0:00:11]} Qe7 {[%emt 0:00:15]} 26. Rg7 {[%emt 0:00:14]} Nd6 {[%emt 0:00:04]} 27. Bc6 {[%emt 0:00:23]} Rhg8 {[%emt 0:00:04]} 28. Bxb7 {[%emt 0:00:03]} Kxb7 {[%emt 0:00:02]} 29. Rdg1 {[%emt 0:00:04]} Rxg7 {[%emt 0:00:21]} 30. Rxg7 {[%emt 0:00:06]} Qf6 {[%emt 0:00:02]} 31. Rg1 {[%emt 0:00:11]} Ne4 {[%emt 0:00:03]} 32. Kc2 {[%emt 0:00:05]} Nxf2 {[%emt 0:00:10]} 33. Qg3 {[%emt 0:00:10]} Ne4 {[%emt 0:00:09]} 34. Qg7 {[%emt 0:00:03]} Qe7 {[%emt 0:00:10]} 35. Qxf7 {[%emt 0:00:04]} Qd6 {[%emt 0:00:03]} 36. Rg6 {[%emt 0:00:16]} Qd5 {[%emt 0:00:21]} 37. Qxe6 {[%emt 0:00:04]} Qb5 {[%emt 0:00:16]} 38. Qc6+ {[%emt 0:00:03]} Qxc6 {[%emt 0:00:01]} 39. Nxc6 {[%emt 0:00:07]} Rh8 {[%emt 0:00:02]} 40. Nce5 {[%emt 0:00:04]} Nd6 {[%emt 0:00:02]} 41. h5 {[%emt 0:00:06]} Ne4 {[%emt 0:00:02]} 42. Nf7 {[%emt 0:00:03]} Rf8 {[%emt 0:00:02]} 43. Nxh6 {[%emt 0:00:03]} f4 {[%emt 0:00:02]} 44. Rg8 {[%emt 0:00:07]} Rf6 {[%emt 0:00:02]} 45. Ng4 {[%emt 0:00:02]} Rf5 {[%emt 0:00:01]} 46. Rh8 {[%emt 0:00:07]} Ng3 {[%emt 0:00:05]} 47. h6 {[%emt 0:00:02]} Rh5 {[%emt 0:00:01]} 48. Nf6 {[%emt 0:00:03]} Rh1 {[%emt 0:00:06]} 49. h7 {[%emt 0:00:02]} Rf1 {[%emt 0:00:08]} 50. Rb8+ {[%emt 0:00:02]} Kxb8 {[%emt 0:00:04]} 51. h8=Q+ {[%emt 0:00:02]} Kb7 {[%emt 0:00:00]} 52. Ne5 {[%emt 0:00:04]} Rf2+ {[%emt 0:00:02]} 53. Kd3 {[%emt 0:00:00]} Rxa2 {[%emt 0:00:05]} 54. Qe8 {[%emt 0:00:07]} Rd2+ {[%emt 0:00:09]} 55. Kxd2 {[%emt 0:00:02]} a2 {[%emt 0:00:02]} 56. Qc6+ {[%emt 0:00:01]} Ka6 {[%emt 0:00:02]} 57. Qa4+ {[%emt 0:00:02]} Kb7 {[%emt 0:00:01]} 58. Qc6+ {[%emt 0:00:02]} Ka6 {[%emt 0:00:02]} 59. Qa8+ {[%emt 0:00:01]} Kb5 {[%emt 0:00:00]} 60. c4+ {[%emt 0:00:01]} Kb4 {[%emt 0:00:03]} 61. Qa4# {[%emt 0:00:02]} 1-0

[Event "3rd FIDE WCCC Blitz U10 2019"]
[Site "Minsk"]
[Date "2019.08.18"]
[Round "9.5"]
[White "Pham, Tran Gia Phuc"]
[Black "Samunenkov, Ihor"]
[Result "0-1"]
[ECO "A62"]
[WhiteElo "1611"]
[BlackElo "1964"]
[Annotator "NA"]
[PlyCount "139"]
[EventDate "2019.08.18"]
[EventType "swiss"]
[EventCountry "BLR"]
[SourceTitle "playchess.com"]
[Source "ChessBase"]
[SourceQuality "1"]
[TimeControl "300+2"]

1. d4 {[%emt 0:00:00]} Nf6 {[%emt 0:00:00]} 2. c4 {[%emt 0:00:00]} c5 {[%emt 0:00:03]} 3. d5 {[%emt 0:00:00]} e6 {[%emt 0:00:01]} 4. Nc3 {[%emt 0:00:01]} exd5 {[%emt 0:00:01]} 5. cxd5 {[%emt 0:00:01]} d6 {[%emt 0:00:00]} 6. g3 {[%emt 0:00:01]} g6 7. Bg2 Bg7 {[%emt 0:00:03]} 8. Nf3 {[%emt 0:00:01]} O-O {[%emt 0:00:01]} 9. O-O {[%emt 0:00:01]} Re8 {[%emt 0:00:02]} 10. Bf4 {[%emt 0:00:01]} Na6 {[%emt 0:00:24]} 11. Re1 {[%emt 0:00:07]} Bg4 {[%emt 0:00:26]} 12. h3 {[%emt 0:00:11]} Bxf3 {[%emt 0:00:07]} 13. Bxf3 {[%emt 0:00:01]} Nd7 {[%emt 0:00:09]} 14. a4 {[%emt 0:00:21]} Ne5 {[%emt 0:00:06]} 15. Bg2 {[%emt 0:00:01]} Nb4 {[%emt 0:00:31]} 16. Rc1 {[%emt 0:00:15]} a6 {[%emt 0:00:12]} 17. Qb3 {[%emt 0:00:54]} Qa5 {[%emt 0:00:27]} 18. Ne4 {[%emt 0:00:11]} Qd8 {[%emt 0:00:36]} 19. Bg5 {[%emt 0:00:14]} f6 {[%emt 0:00:05]} 20. Bd2 {[%emt 0:00:02]} a5 {[%emt 0:00:22]} 21. Nc3 {[%emt 0:00:02]} Qd7 {[%emt 0:00:16]} 22. Nb5 {[%emt 0:00:11]} f5 {[%emt 0:00:01]} 23. Bc3 {[%emt 0:00:19]} g5 {[%emt 0:00:16]} 24. f4 {[%emt 0:00:41]} gxf4 {[%emt 0:00:06]} 25. gxf4 {[%emt 0:00:00]} Ng6 {[%emt 0:00:06]} 26. Bxg7 {[%emt 0:00:02]} Kxg7 {[%emt 0:00:05]} 27. Qc3+ {[%emt 0:00:00]} Kf7 {[%emt 0:00:05]} 28. e3 {[%emt 0:00:34]} Na2 {[%emt 0:00:04]} 29. Qd3 {[%emt 0:00:21]} Nxc1 {[%emt 0:00:02]} 30. Rxc1 {[%emt 0:00:01]} Nh4 {[%emt 0:00:04]} 31. Bh1 {[%emt 0:00:01]} Rg8+ {[%emt 0:00:02]} 32. Kh2 {[%emt 0:00:07]} Qe7 {[%emt 0:00:09]} 33. e4 {[%emt 0:00:19]} Qf6 {[%emt 0:00:15]} 34. e5 {[%emt 0:00:24]} dxe5 {[%emt 0:00:09]} 35. d6 {[%emt 0:00:01]} e4 {[%emt 0:00:17]} 36. Qd5+ {[%emt 0:00:02]} Kf8 {[%emt 0:00:01]} 37. Qe5 {[%emt 0:00:20]} Qxe5 {[%emt 0:00:06]} 38. fxe5 {[%emt 0:00:01]} Kf7 {[%emt 0:00:03]} 39. Rxc5 {[%emt 0:00:04]} Rac8 {[%emt 0:00:07]} 40. Nc7 {[%emt 0:00:05]} Nf3+ {[%emt 0:00:06]} 41. Bxf3 {[%emt 0:00:01]} exf3 {[%emt 0:00:01]} 42. e6+ {[%emt 0:00:02]} Kf6 {[%emt 0:00:07]} 43. Rc2 {[%emt 0:00:01]} Ke5 {[%emt 0:00:12]} 44. d7 {[%emt 0:00:03]} Rxc7 {[%emt 0:00:04]} 45. Rxc7 {[%emt 0:00:01]} Kxe6 {[%emt 0:00:03]} 46. Rc3 {[%emt 0:00:10]} f2 {[%emt 0:00:03]} 47. Rc1 {[%emt 0:00:06]} Kxd7 {[%emt 0:00:02]} 48. Rf1 {[%emt 0:00:00]} Ke6 {[%emt 0:00:02]} 49. Rxf2 Ke5 {[%emt 0:00:03]} 50. Re2+ {[%emt 0:00:05]} Kf6 {[%emt 0:00:01]} 51. Rc2 {[%emt 0:00:03]} f4 {[%emt 0:00:02]} 52. Rc7 {[%emt 0:00:06]} Rg7 {[%emt 0:00:01]} 53. Rc4 {[%emt 0:00:01]} Kf5 {[%emt 0:00:02]} 54. Rc2 {[%emt 0:00:03]} f3 {[%emt 0:00:03]} 55. Rc5+ {[%emt 0:00:03]} Kf4 {[%emt 0:00:01]} 56. Rc4+ {[%emt 0:00:00]} Ke3 {[%emt 0:00:01]} 57. Rc3+ {[%emt 0:00:01]} Ke2 {[%emt 0:00:04]} 58. Rc2+ {[%emt 0:00:05]} Kd3 {[%emt 0:00:01]} 59. Rc8 {[%emt 0:00:04]} f2 {[%emt 0:00:03]} 60. Rd8+ {[%emt 0:00:01]} Ke2 {[%emt 0:00:02]} 61. Re8+ {[%emt 0:00:01]} Kf1 {[%emt 0:00:03]} 62. Re4 {[%emt 0:00:03]} Rg2+ {[%emt 0:00:03]} 63. Kh1 {[%emt 0:00:01]} Rg3 {[%emt 0:00:01]} 64. Kh2 {[%emt 0:00:01]} Rb3 {[%emt 0:00:01]} 65. Re5 {[%emt 0:00:05]} Rxb2 {[%emt 0:00:01]} 66. Kg3 {[%emt 0:00:00]} Rb3+ {[%emt 0:00:03]} 67. Kh2 {[%emt 0:00:02]} Rb2 {[%emt 0:00:04]} 68. Rxa5 {[%emt 0:00:01]} Ke1 {[%emt 0:00:01]} 69. Re5+ {[%emt 0:00:01]} Re2 {[%emt 0:00:01]} 70. Rd5 0-1

[Event "3rd FIDE WCCC Blitz U10 2019"]
[Site "Minsk"]
[Date "2019.08.18"]
[Round "9.6"]
[White "Pasiashnichenka, Dzmitry"]
[Black "Vershinin, Igor"]
[Result "1-0"]
[ECO "A00"]
[WhiteElo "1296"]
[BlackElo "2188"]
[Annotator "ChessBase"]
[PlyCount "109"]
[EventDate "2019.08.18"]
[EventType "swiss"]
[EventCountry "BLR"]
[SourceTitle "playchess.com"]
[Source "ChessBase"]
[SourceQuality "1"]
[TimeControl "300+2"]

1. a3 {[%emt 0:00:00]} e5 {[%emt 0:00:01]} 2. c4 {[%emt 0:00:00]} Nf6 {[%emt 0:00:04]} 3. Nc3 {[%emt 0:00:02]} d6 {[%emt 0:00:00]} 4. Nf3 {[%emt 0:00:02]} g6 {[%emt 0:00:02]} 5. d4 {[%emt 0:00:01]} exd4 {[%emt 0:00:08]} 6. Nxd4 {[%emt 0:00:01]} Bg7 {[%emt 0:00:01]} 7. e4 {[%emt 0:00:06]} O-O {[%emt 0:00:02]} 8. Be2 {[%emt 0:00:01]} Re8 {[%emt 0:00:03]} 9. f3 {[%emt 0:00:01]} Nbd7 {[%emt 0:00:13]} 10. O-O {[%emt 0:00:03]} h6 {[%emt 0:00:13]} 11. Be3 {[%emt 0:00:03]} c6 {[%emt 0:00:07]} 12. Qd2 {[%emt 0:00:05]} Kh7 {[%emt 0:00:03]} 13. Rad1 {[%emt 0:00:04]} Qe7 {[%emt 0:00:11]} 14. Nc2 {[%emt 0:00:04]} Ne5 {[%emt 0:00:25]} 15. Qxd6 {[%emt 0:00:10]} Qxd6 {[%emt 0:00:01]} 16. Rxd6 Be6 17. b3 {[%emt 0:00:08]} Nfd7 {[%emt 0:00:09]} 18. Nb1 {[%emt 0:00:17]} Rad8 {[%emt 0:00:02]} 19. Rfd1 {[%emt 0:00:01]} f5 {[%emt 0:00:13]} 20. Bxa7 {[%emt 0:00:13]} b6 {[%emt 0:00:07]} 21. f4 {[%emt 0:00:25]} Nf7 {[%emt 0:00:11]} 22. Rxc6 {[%emt 0:00:06]} fxe4 23. Bxb6 {[%emt 0:00:19]} Nxb6 {[%emt 0:00:02]} 24. Rxd8 {[%emt 0:00:03]} Rxd8 {[%emt 0:00:01]} 25. Rxb6 {[%emt 0:00:03]} Bf5 {[%emt 0:00:02]} 26. g4 {[%emt 0:00:20]} Bc8 {[%emt 0:00:05]} 27. Kf2 {[%emt 0:00:06]} g5 {[%emt 0:00:04]} 28. f5 {[%emt 0:00:05]} Ne5 {[%emt 0:00:02]} 29. f6 {[%emt 0:00:08]} Bf8 {[%emt 0:00:01]} 30. Ne3 {[%emt 0:00:43]} Nd3+ 31. Bxd3 {[%emt 0:00:04]} Rxd3 {[%emt 0:00:11]} 32. Rb8 {[%emt 0:00:24]} Bc5 {[%emt 0:00:06]} 33. Rxc8 {[%emt 0:00:02]} Bxe3+ {[%emt 0:00:02]} 34. Ke2 {[%emt 0:00:02]} Bd4 {[%emt 0:00:44]} 35. f7 {[%emt 0:00:05]} Bg7 {[%emt 0:00:05]} 36. Nd2 {[%emt 0:00:11]} Rh3 {[%emt 0:00:11]} 37. f8=Q {[%emt 0:00:07]} Bxf8 {[%emt 0:00:01]} 38. Rxf8 {[%emt 0:00:01]} Rxh2+ {[%emt 0:00:03]} 39. Ke3 {[%emt 0:00:01]} Rg2 {[%emt 0:00:03]} 40. Nxe4 {[%emt 0:00:03]} Rxg4 {[%emt 0:00:03]} 41. Nf6+ {[%emt 0:00:01]} Kg7 {[%emt 0:00:01]} 42. Nxg4 {[%emt 0:00:01]} Kxf8 {[%emt 0:00:01]} 43. c5 {[%emt 0:00:01]} h5 {[%emt 0:00:01]} 44. Kf3 {[%emt 0:00:00]} h4 {[%emt 0:00:03]} 45. c6 {[%emt 0:00:02]} Ke7 {[%emt 0:00:01]} 46. b4 {[%emt 0:00:00]} Kd6 {[%emt 0:00:02]} 47. b5 {[%emt 0:00:01]} Kc7 {[%emt 0:00:03]} 48. Ne5 {[%emt 0:00:03]} Kb6 {[%emt 0:00:01]} 49. a4 {[%emt 0:00:01]} Kc7 {[%emt 0:00:01]} 50. a5 {[%emt 0:00:01]} Kb8 51. b6 Kc8 {[%emt 0:00:03]} 52. b7+ {[%emt 0:00:00]} Kc7 {[%emt 0:00:01]} 53. a6 {[%emt 0:00:02]} Kb8 {[%emt 0:00:00]} 54. Nd7+ {[%emt 0:00:04]} Ka7 {[%emt 0:00:08]} 55. b8=Q+ 1-0